Cogmind - Beta 13 @@@ ROGUE MODE // 2024.07.03 @ 01:44:16 Player: Berg Result: Destroyed by G-67 Veteran with Field Laser Performance ------------- Evolutions (7) 3500 Regions Visited (9) 1800 Robots Destroyed (86) 430 Value Destroyed (2591) 2591 Prototype IDs (9) 180 Alien Tech Used (0) 0 Bonus (579) 579 TOTAL SCORE: 9080 Bonus ------- High Alert Combat Kills 79 Entered DSFs 500 Cogmind --------- Core Integrity 0/1300 Matter 122/300 Energy 149/150 System Corruption 12% Temperature Cool (9) Movement Core (150) Ox2 Location -3/Research Parts ------- > --- POWER (2) -------- Micro Antimatter Reactor > --- PROPULSION (4) --- (None) > --- UTILITY (9) ------ (None) > --- WEAPON (6) ------- (None) > --- INVENTORY (5) ---- Advanced Medium Treads Antigrav Array Advanced Heat Sink Peak State ------------ > --- POWER ------------ Micro Fission Core Light Antimatter Reactor > --- PROPULSION ------- Biomechanical Wings Field Propulsion Drive Nuclear Pulse Array > --- UTILITY ---------- Improved Sensor Array Advanced Signal Interpreter Hacking Suite Hacking Suite Hacking Suite Hacking Suite Hacking Suite Improved Hacking Suite > --- WEAPON ----------- Improved KE Penetrator > --- INVENTORY -------- Angular Momentum Engine Advanced Medium Treads Advanced Heat Sink System Shield System Shield [Rating: 74] Favorites ----------- Power Ion Engine Engine Ion Engine Power Core Light Nuclear Core Reactor Micro Antimatter Reactor Propulsion Light Treads Treads Light Treads Wheel Wheel Hover Unit Improved Antigrav System Flight Unit Xenon Bombardment Thruster Utility Hacking Suite Device Improved Heat Sink Storage Large Storage Unit Processor Improved Signal Interpreter Hackware Hacking Suite Protection Scrap Shield Weapon Gauss Rifle Energy Gun Pulse Rifle Ballistic Gun Gauss Rifle Launcher Grenade Launcher Build | -11 -10 -10 -8 -7 -7 -6 -5 -4 -3 ------- Run | Yrd Mat Sub Mat Fac DSF Fac Fac Fac Res Slots Evolved 14 | . . . 4 2 . 2 2 2 2 Power 1 | . . . . . . . 1 . . Propulsion 2 | . . . . 2 . . . . . Utility 7 | . . . 2 . . 2 . 2 1 Weapon 4 | . . . 2 . . . 1 . 1 Parts Attached 106 | 7 4 8 25 2 19 14 10 9 8 Power 18 | 1 2 2 4 1 1 2 1 3 1 Engine 10 | 1 1 2 2 . 1 1 . 2 . Core 6 | . 1 . 2 1 . 1 1 . . Reactor 2 | . . . . . . . . 1 1 Propulsion 28 | 2 . 1 7 . 5 4 5 1 3 Treads 8 | 2 . 1 5 . . . . . . Leg . | . . . . . . . . . . Wheel 1 | . . . . . 1 . . . . Hover 5 | . . . 2 . . . . . 3 Flight 14 | . . . . . 4 4 5 1 . Utility 32 | 2 1 2 5 1 7 5 2 5 2 Device 7 | 1 . . 2 1 . 1 1 1 . Storage 2 | 1 . . 1 . . . . . . Processor 6 | . 1 . 1 . . 2 1 1 . Hackware 11 | . . . . . 4 2 . 3 2 Protection 6 | . . 2 1 . 3 . . . . Artifact . | . . . . . . . . . . Weapon 28 | 2 1 3 9 . 6 3 2 . 2 Energy Gun 7 | . . 1 4 . . 1 1 . . Energy Cannon . | . . . . . . . . . . Ballistic Gun 20 | 2 1 1 5 . 6 2 1 . 2 Ballistic Cannon . | . . . . . . . . . . Launcher 1 | . . 1 . . . . . . . Special Weapon . | . . . . . . . . . . Impact Weapon . | . . . . . . . . . . Slashing Weapon . | . . . . . . . . . . Piercing Weapon . | . . . . . . . . . . Special Melee Weapon . | . . . . . . . . . . Unidentified Prototypes 9 | . . . 2 1 . 4 2 . . Parts Lost 39 | . . 1 5 . 10 7 3 5 8 Power 2 | . . . . . . . . 2 . Propulsion 16 | . . 1 2 . 3 2 2 1 5 Utility 9 | . . . . . 3 3 . 2 1 Weapon 12 | . . . 3 . 4 2 1 . 2 Highest Loss Streak 8 | . . 1 3 . 8 4 2 2 4 To Critical Strikes . | . . . . . . . . . . Average Slot Usage (%) 83 | . 100 88 92 84 63 79 62 65 24 Engine 6 | . 13 13 1 4 . 5 . 2 . Core 3 | . . . 7 2 5 . 5 6 . Treads 15 | . 28 27 17 15 4 . . . . Flight 4 | . . . . . 3 25 23 17 3 Device 5 | . 14 3 6 7 5 4 1 4 . Storage 4 | . 8 . 8 7 5 . . . . Processor 5 | . 5 3 8 7 5 5 5 5 2 Hackware 4 | . . . . . 1 25 20 22 13 Protection 5 | . . 10 7 7 4 . . . . Energy Gun 7 | . . 8 11 15 5 1 2 . . Ballistic Gun 16 | . 28 14 23 15 16 8 . 5 1 Launcher 1 | . . 5 . . . . . . . Naked Turns 41 | . . . . . 9 . . . 32 Heaviest Build 58 | 14 14 29 58 45 48 15 22 25 19 Greatest Support 40 | 40 40 40 40 40 40 24 25 26 26 Greatest Overweight (x) 15 | . . . 7 1 15 . . 1 4 Average Overweight (x) . | . . . . . 1 . . . . Largest Inventory Capacity 15 | 8 8 5 15 15 15 5 5 5 5 Average Capacity 9 | 7 6 5 14 15 13 5 5 5 5 Most Carried 15 | 4 6 5 15 15 15 5 5 5 4 Average Carried 7 | 3 4 4 10 14 9 4 4 4 3 Final Capacity 15 | 8 5 5 15 15 5 5 5 5 5 Final Carried 15 | 4 5 4 15 15 5 5 4 4 4 Class Distribution -------------------- 33% | Scavenger-Tank 28% | Mutant 10% | Hacker-Sprinter 6% | Scavenger-Skirmisher 5% | Hacker-Mutant 4% | Scavenger-Mutant 3% | Subdweller-Mutant 3% | Wizard-Mutant Dominant Class ---------------- Mutant | -10/Materials Mutant | -10/Subcaves Scavenger-Tank | -8/Materials Scavenger-Tank | -7/Factory Tank | -7/DSF Hacker-Sprinter | -6/Factory Hacker-Sprinter | -5/Factory Wizard-Mutant | -4/Factory Mutant | -3/Research Resources | -11 -10 -10 -8 -7 -7 -6 -5 -4 -3 ----------- Run | Yrd Mat Sub Mat Fac DSF Fac Fac Fac Res Matter Collected 2407 | 294 127 172 1009 . 421 270 . 10 104 Remotely . | . . . . . . . . . . Salvage Created 3133 | 140 209 150 1714 . 349 476 . . 95 Parts 200 | 9 14 11 113 . 15 30 . . 8 Haulers Intercepted 3 | . 1 . 2 . . . . . . Recyclers Shooed 1 | . . . . . . 1 . . . Parts Field Recycled . | . . . . . . . . . . Retrieved Matter . | . . . . . . . . . . Parts Self-Destructed 2 | . . 2 . . . . . . . Prevented . | . . . . . . . . . . Kills | -11 -10 -10 -8 -7 -7 -6 -5 -4 -3 ------- Run | Yrd Mat Sub Mat Fac DSF Fac Fac Fac Res Combat Hostiles Destroyed 61 | . 5 4 35 . 8 7 . . 2 Guns 59 | . 5 3 35 . 8 7 . . 1 AOE 1 | . . 1 . . . . . . . Classes Destroyed 15 | 2 3 1 6 . 1 2 . . . Worker 7 | . . . 3 . . 4 . . . Builder 2 | . . . 2 . . . . . . Tunneler 4 | 2 . . 1 . . 1 . . . Hauler 3 | . 1 . 2 . . . . . . Recycler 3 | 1 . . . . . 2 . . . Operator 1 | . . . 1 . . . . . . Watcher 5 | . . . 5 . . . . . . Swarmer 17 | . 3 . 11 . . 3 . . . Cutter 4 | . . . . . . 3 . . 1 Grunt 26 | . 2 . 17 . 7 . . . . Duelist 1 | . . . 1 . . . . . . Sentry 6 | . . . 6 . . . . . . Programmer 2 | . . . . . . 1 . . 1 Heavy 1 | . . . . . 1 . . . . Subdweller 4 | . . 4 . . . . . . . Best Kill Streak 10 | 1 3 2 10 . 3 6 . . 1 Combat Bots Only 5 | . 3 2 5 . 3 3 . . 1 Max Kills in Single Turn 3 | 1 1 1 2 . 2 3 . . 1 Gunslinging 1 | . . . 1 . 1 1 . . . Exploded 1 | . . 1 . . . . . . . Melee . | . . . . . . . . . . Uniques/NPCs Destroyed . | . . . . . . . . . . Combat | -11 -10 -10 -8 -7 -7 -6 -5 -4 -3 -------- Run | Yrd Mat Sub Mat Fac DSF Fac Fac Fac Res Hostile Shots Fired 556 | . 30 21 118 . 72 119 11 44 141 Missed 223 | . 10 11 32 . 21 60 6 22 61 Damage Taken 6353 | . 215 289 1225 . 1371 774 108 573 1798 Core 1817 | . 24 53 22 . 155 177 . 76 1310 Absorbed by Shields 86 | . . . . . . 44 . . 42 Core Remaining (%) 87 | 100 . 69 96 . 77 79 100 93 . Volleys Fired 202 | 6 23 26 75 . 28 33 3 1 7 Largest 4 | 2 2 2 4 . 4 2 1 1 1 Hottest 188 | 40 40 70 188 . 174 58 60 33 35 Shots Fired 545 | 12 46 42 276 . 98 59 3 1 8 Gun 542 | 12 46 39 276 . 98 59 3 1 8 Cannon . | . . . . . . . . . . Launcher 3 | . . 3 . . . . . . . Special . | . . . . . . . . . . Kinetic 430 | 12 46 25 206 . 73 59 . 1 8 Thermal 95 | . . . 70 . 25 . . . . Explosive 3 | . . 3 . . . . . . . Electromagnetic 17 | . . 14 . . . . 3 . . Robot Hit Streak 13 | 10 8 12 13 . 9 11 3 . 5 Robot Miss Streak 7 | 1 3 1 5 . 7 3 1 . 1 Penetration Max 1 | . . . 1 . . 1 . . . Secondary Targets 13 | . 1 . 7 . 3 2 . . . Max Gunslinging Chain 1 | . 1 . 1 . 1 1 . . . Shots Hit Robots 338 | 11 28 27 163 . 65 35 2 . 7 Core Hits 153 | 6 10 12 79 . 25 17 1 . 3 Critical Kills 2 | . 1 . 1 . . . . . . Critical Parts Destroyed 2 | . . . 2 . . . . . . Critical Strikes 8 | . 1 . 6 . 1 . . . . Burn 4 | . . . 3 . 1 . . . . Destroy 4 | . 1 . 3 . . . . . . Melee Attacks . | . . . . . . . . . . Impact . | . . . . . . . . . . Slashing . | . . . . . . . . . . Piercing . | . . . . . . . . . . Sneak Attacks . | . . . . . . . . . . Combat Hostiles . | . . . . . . . . . . Follow-up Attacks . | . . . . . . . . . . Damage Inflicted 7144 | 121 287 449 3701 . 1133 1188 10 . 255 Guns 6686 | 121 285 344 3699 . 1133 891 10 . 203 Cannons . | . . . . . . . . . . Explosions 402 | . . 105 . . . 297 . . . Melee . | . . . . . . . . . . Ramming 56 | . 2 . 2 . . . . . 52 Kinetic 5371 | 121 285 217 2823 . 831 891 . . 203 Thermal 1178 | . . . 876 . 302 . . . . Explosive 402 | . . 105 . . . 297 . . . Electromagnetic 137 | . . 127 . . . . 10 . . Impact . | . . . . . . . . . . Slashing . | . . . . . . . . . . Piercing . | . . . . . . . . . . Highest Corruption 12 | . . . . . . . . . 12 Average Corruption 6 | . . . . . . . . . 6 Corruption Purged . | . . . . . . . . . . Corruption Blocked . | . . . . . . . . . . Effects 5 | . . . . . . . . . 5 Heat Flow Errors 1 | . . . . . . . . . 1 Data Loss (minor) 2 | . . . . . . . . . 2 Misfires 1 | . . . . . . . . . 1 Misdirections 1 | . . . . . . . . . 1 Overload Shots . | . . . . . . . . . . Overflow Damage 16 | . . . . . . 13 . . 3 Projectiles . | . . . . . . . . . . Explosions 13 | . . . . . . 13 . . . Melee 3 | . . . . . . . . . 3 Knockbacks . | . . . . . . . . . . Impact . | . . . . . . . . . . Kinetic . | . . . . . . . . . . Secondary . | . . . . . . . . . . Self-Inflicted Damage 174 | . . . 52 . . 101 . . 21 Shots 2 | . . . 1 . . 1 . . . Rammed 24 | . 1 . 3 . . . . . 20 Targets Rammed 24 | . 1 . 3 . . . . . 20 Kicked . | . . . . . . . . . . Crushed . | . . . . . . . . . . Highest Temperature 357 | . 28 . 357 . 18 20 10 12 147 Average Temperature 73 | . 17 . 89 . 4 6 6 12 78 Received Heat Transfer 1258 | . 93 42 540 . 342 60 . 82 99 Effects 1 | . . . 1 . . . . . . Energy Bleed 1 | . . . 1 . . . . . . Siege Activations . | . . . . . . . . . . Robots Corrupted . | . . . . . . . . . . Combat Hostiles . | . . . . . . . . . . Parts Fried 3 | . . . . . . . . . 3 Impact Corruptions 1 | . . . . . . . . . 1 Robots Melted . | . . . . . . . . . . Combat Hostiles . | . . . . . . . . . . Parts Melted 2 | . . 2 . . . . . . . Heat Transferred 2812 | . . . 2072 . 740 . . . . Parts Sabotaged . | . . . . . . . . . . Parts Stolen . | . . . . . . . . . . Parts Stripped . | . . . . . . . . . . Power Chain Reactions . | . . . . . . . . . . Alert | -11 -10 -10 -8 -7 -7 -6 -5 -4 -3 ------- Run | Yrd Mat Sub Mat Fac DSF Fac Fac Fac Res Peak Influence 570 | 15 103 . 570 230 175 388 284 348 319 Initial 230 | . 9 . . 230 21 91 189 138 182 Average 210 | 7 50 . 292 208 67 209 211 197 241 Maximum Alert Level 2 | . . . 2 1 . 1 1 1 1 Low Security (%) 53 | 100 100 . 40 10 100 45 61 66 40 Level 1 30 | . . . 22 89 . 54 38 33 59 Level 2 15 | . . . 36 . . . . . . Level 3 . | . . . . . . . . . . Level 4 . | . . . . . . . . . . Level 5 . | . . . . . . . . . . High Security . | . . . . . . . . . . Max Security . | . . . . . . . . . . Squads Dispatched 15 | . . . 5 . 1 2 2 3 2 Investigation 2 | . . . 1 . . . 1 . . Extermination 2 | . . . . . . 1 . 1 . Reinforcement 7 | . . . . . 1 1 1 2 2 Assault . | . . . . . . . . . . Garrison 4 | . . . 4 . . . . . . Intercept . | . . . . . . . . . . Searches Triggered . | . . . . . . . . . . Construction Impeded 1 | . . . . . . . . . 1 Haulers Reinforced . | . . . . . . . . . . Active Scanning Responses . | . . . . . . . . . . Cargo Convoy Interrupts . | . . . . . . . . . . Stealth | -11 -10 -10 -8 -7 -7 -6 -5 -4 -3 --------- Run | Yrd Mat Sub Mat Fac DSF Fac Fac Fac Res Distress Signals 9 | . . . 5 . . 1 . 3 . Communications Jammed . | . . . . . . . . . . Distress Signals . | . . . . . . . . . . Times Spotted 132 | . 7 4 47 . 13 20 5 22 14 Peak Tracking Total 11 | . 3 1 5 . 4 11 5 11 6 Tactical Retreats 15 | . 1 . . . 2 2 2 5 3 Traps | -11 -10 -10 -8 -7 -7 -6 -5 -4 -3 ------- Run | Yrd Mat Sub Mat Fac DSF Fac Fac Fac Res Traps Triggered 10 | . 1 1 1 . 1 1 2 . 3 Indirectly . | . . . . . . . . . . Trap Hack Attempts . | . . . . . . . . . . Triggered . | . . . . . . . . . . Disarmed . | . . . . . . . . . . Reprogrammed . | . . . . . . . . . . Reused . | . . . . . . . . . . Traps Extracted . | . . . . . . . . . . Installed . | . . . . . . . . . . Triggered . | . . . . . . . . . . Machines | -11 -10 -10 -8 -7 -7 -6 -5 -4 -3 ---------- Run | Yrd Mat Sub Mat Fac DSF Fac Fac Fac Res Machines Disabled 17 | . . . 10 . . 7 . . . Max in Single Turn 6 | . . . 3 . . 6 . . . Garrison Access 1 | . . . . . . . . 1 . Machines Repaired . | . . . . . . . . . . Machines Dismantled . | . . . . . . . . . . Machines Sabotaged . | . . . . . . . . . . Overloaded Fab Kills . | . . . . . . . . . . Hacking | -11 -10 -10 -8 -7 -7 -6 -5 -4 -3 --------- Run | Yrd Mat Sub Mat Fac DSF Fac Fac Fac Res Machines Accessed 21 | . 3 1 9 1 . 3 2 2 . Terminals 15 | . 3 . 7 1 . 2 1 1 . Fabricators 1 | . . . . . . . 1 . . Repair Stations . | . . . . . . . . . . Recycling Units 2 | . . . 2 . . . . . . Scanalyzers 1 | . . . . . . 1 . . . Garrison Access 1 | . . . . . . . . 1 . Total Hacks 49 | . 9 1 22 1 . 8 5 3 . Successful 27 | . 2 1 11 1 . 7 3 2 . Failed 21 | . 7 . 10 . . 1 2 1 . Catastrophic 3 | . . . 2 . . 1 . . . Database Lockouts 1 | . . . 1 . . . . . . Manual 35 | . 9 1 17 . . 3 3 2 . Terminals 38 | . 9 . 19 1 . 4 3 2 . Fabricators 2 | . . . . . . . 2 . . Repair Stations . | . . . . . . . . . . Recycling Units 3 | . . . 3 . . . . . . Scanalyzers 4 | . . . . . . 4 . . . Garrison Access 1 | . . . . . . . . 1 . Terminal Hacks 16 | . 2 1 8 1 . 2 1 1 . Record 1 | . . 1 . . . . . . . Robot Analysis 2 | . . . 2 . . . . . . Open DSF 1 | . . . . 1 . . . . . Level Access Points 2 | . . . . . . . 1 1 . Branch Access Points 2 | . 1 . 1 . . . . . . Emergency Access Points 1 | . . . 1 . . . . . . Terminal Index 3 | . 1 . 1 . . 1 . . . Alert Level 1 | . . . 1 . . . . . . Unreport Threat 1 | . . . 1 . . . . . . Recall Investigation 1 | . . . 1 . . . . . . Zone Layout 1 | . . . . . . 1 . . . Fabricator Hacks 2 | . . . . . . . 2 . . Load Schematic 1 | . . . . . . . 1 . . Build 1 | . . . . . . . 1 . . Repair Station Hacks . | . . . . . . . . . . Recycling Unit Hacks . | . . . . . . . . . . Scanalyzer 4 | . . . . . . 4 . . . Insert Component 2 | . . . . . . 2 . . . Analyze 2 | . . . . . . 2 . . . Garrison Access Hacks 1 | . . . . . . . . 1 . Seal Access 1 | . . . . . . . . 1 . Unauthorized Hacks 4 | . . . 3 . . 1 . . . Terminals 2 | . . . 1 . . 1 . . . Botnet 2 | . . . 1 . . 1 . . . Fabricators . | . . . . . . . . . . Repair Stations . | . . . . . . . . . . Recycling Units 2 | . . . 2 . . . . . . Reject 2 | . . . 2 . . . . . . Scanalyzers . | . . . . . . . . . . Garrison Access . | . . . . . . . . . . Data Cores Recovered . | . . . . . . . . . . Used . | . . . . . . . . . . Hacking Detections 14 | . 3 . 6 . . 3 2 . . Full Trace Events 1 | . . . . . . . 1 . . Feedback Events . | . . . . . . . . . . Feedback Blocked . | . . . . . . . . . . Robot Schematics Acquired . | . . . . . . . . . . Robots Built . | . . . . . . . . . . Authchips . | . . . . . . . . . . Time . | . . . . . . . . . . Total Robot Build Rating . | . . . . . . . . . . Part Schematics Acquired 1 | . . . . . . 1 . . . Parts Built 1 | . . . . . . . 1 . . Authchips . | . . . . . . . . . . Time 73 | . . . . . . . 73 . . Total Part Build Rating 3 | . . . . . . . 3 . . Parts Repaired . | . . . . . . . . . . Time . | . . . . . . . . . . Parts Recycled . | . . . . . . . . . . Recycled Matter . | . . . . . . . . . . Retrieved Matter . | . . . . . . . . . . Retrieved Components . | . . . . . . . . . . Parts Scanalyzed 2 | . . . . . . 2 . . . Part Schematics Acquired 1 | . . . . . . 1 . . . Parts Damaged . | . . . . . . . . . . Bothacking | -11 -10 -10 -8 -7 -7 -6 -5 -4 -3 ------------ Run | Yrd Mat Sub Mat Fac DSF Fac Fac Fac Res Used RIF Installer . | . . . . . . . . . . Robots Hacked . | . . . . . . . . . . Non-combat . | . . . . . . . . . . Combat . | . . . . . . . . . . Robot Hacks Applied . | . . . . . . . . . . Relay Couplers Released . | . . . . . . . . . . Fabnet Peak Effective % . | . . . . . . . . . . Robots Rewired . | . . . . . . . . . . Allies Hacked . | . . . . . . . . . . Hacks Repelled . | . . . . . . . . . . Allies | -11 -10 -10 -8 -7 -7 -6 -5 -4 -3 -------- Run | Yrd Mat Sub Mat Fac DSF Fac Fac Fac Res Total Allies . | . . . . . . . . . . Largest Group . | . . . . . . . . . . Highest-Rated Group . | . . . . . . . . . . Highest-Rated Ally . | . . . . . . . . . . Total Orders 1 | . . . . . . . . 1 . EXPLORE 1 | . . . . . . . . 1 . Ally Attacks . | . . . . . . . . . . Total Damage . | . . . . . . . . . . Kills . | . . . . . . . . . . Allies Corrupted . | . . . . . . . . . . Allies Melted . | . . . . . . . . . . Intel | -11 -10 -10 -8 -7 -7 -6 -5 -4 -3 ------- Run | Yrd Mat Sub Mat Fac DSF Fac Fac Fac Res Robot Analysis Total 2 | . . . 2 . . . . . . Derelict Logs Recovered . | . . . . . . . . . . Drone Launches 2 | . . . . . . . . 2 . Drone Recoveries . | . . . . . . . . . . Exploration | -11 -10 -10 -8 -7 -7 -6 -5 -4 -3 ------------- Run | Yrd Mat Sub Mat Fac DSF Fac Fac Fac Res Turns Passed 6269 | 147 590 1316 2072 447 330 626 132 361 248 Spaces Moved 4626 | 75 281 757 724 169 146 1013 355 738 368 Core 172 | 3 . . . . 29 . . . 140 Treads 2028 | 72 281 757 722 169 27 . . . . Legs . | . . . . . . . . . . Wheels 22 | . . . . . 22 . . . . Hover 66 | . . . 2 . . . . . 64 Flight 2338 | . . . . . 68 1013 355 738 164 Fastest Speed 28 | 50 160 160 160 160 31 28 29 32 35 Average Speed 106 | 155 160 160 230 239 140 30 29 35 47 Slowest Speed 800 | 160 160 160 490 240 800 37 37 110 250 Overloaded Moves . | . . . . . . . . . . Propulsion Burnouts . | . . . . . . . . . . Robots Hopped 23 | . . . . . . 13 4 5 1 Cave-ins Triggered . | . . . . . . . . . . Exploration Rate (%) 28 | 4 28 31 69 5 78 22 15 21 13 Regions Visited 9 Branch Regions 1 Pre-discovered Areas . | . . . . . . . . . . Known Exits Taken 6 | . 1 . 1 1 . 1 1 1 . Unknown Exits Taken 2 | 1 . 1 . . . . . . . Scrap Searched 2 | . . 2 . . . . . . . Spaces Dug . | . . . . . . . . . . Terrain Destroyed 111 | . . 15 20 . . 76 . . . Melee . | . . . . . . . . . . Projectile 4 | . . . 3 . . 1 . . . AOE 107 | . . 15 17 . . 75 . . . Terrain Rammed . | . . . . . . . . . . Walls Destroyed . | . . . . . . . . . . Machines Disabled . | . . . . . . . . . . Actions | -11 -10 -10 -8 -7 -7 -6 -5 -4 -3 --------- Run | Yrd Mat Sub Mat Fac DSF Fac Fac Fac Res Total 5552 | 91 381 821 951 214 204 1255 372 832 431 Wait 504 | . 65 14 74 39 8 194 6 84 20 Move 4571 | 74 280 756 723 168 145 986 346 727 366 Hop 23 | . . . . . . 13 4 5 1 Pick Up 43 | 4 3 2 23 2 2 4 1 1 1 Fast Attach 64 | 7 3 4 13 1 8 10 8 5 5 Attach 30 | . . 1 8 1 11 2 2 2 3 Detach 16 | . . 1 10 . . 1 1 2 1 Swap 12 | . 1 3 4 . . 2 . 2 . Drop 43 | . 5 7 18 3 . 6 1 3 . Fire 202 | 6 23 26 75 . 28 33 3 1 7 Melee . | . . . . . . . . . . Ram 20 | . . . . . . . . . 20 Kick . | . . . . . . . . . . Crush 4 | . 1 . 3 . . . . . . Escape Stasis 13 | . . . . . 2 4 . . 7 Rewire . | . . . . . . . . . . Trap . | . . . . . . . . . . Miscellaneous 7 | . . 7 . . . . . . . Route ------- -11/Scrapyard -10/Materials (discovered 4 exits: *Mat / Min x2 / *Sub) -10/Subcaves -8/Materials (discovered 2 exits: *Fac x2) -7/Factory -7/DSF -6/Factory (discovered 3 exits: *Fac x2 / *Low) -5/Factory (discovered 4 exits: *Fac x4) -4/Factory (discovered 4 exits: *Res x4) -3/Research History --------- Turn | Location | Event 20 | -11/Scrapyard | Discovered new exit (range 15) 148 | -11/Scrapyard | Entered Materials 273 | -10/Materials | Identified exit to Mines 301 | -10/Materials | Build established: Mutant 460 | -10/Materials | Discovered new exit (range 16) 525 | -10/Materials | Identified exit to Materials 719 | -10/Materials | Discovered new exit (range 7) 735 | -10/Materials | Identified exit to Subcaves 738 | -10/Materials | Entered Subcaves 741 | -10/Subcaves | Shifting Twisted Machinery released Riot Gun 766 | -10/Subcaves | Shifting Twisted Machinery released Sub. Laser 1347 | -10/Subcaves | Visited Clippyterm 2015 | -10/Subcaves | Discovered new exit (range 9) 2054 | -10/Subcaves | Entered Materials 2054 | -8/Materials | Evolved 4 slots: Utility x2, Weapon x2 2096 | -8/Materials | Central database locked down 2574 | -8/Materials | Build established: Scavenger-Tank 2663 | -8/Materials | Discovered new exit (range 4) 2670 | -8/Materials | Identified exit to Factory 3005 | -8/Materials | Garrison activated, responded to threat 3248 | -8/Materials | Build established: Scavenger-Skirmisher 3314 | -8/Materials | Garrison activated, responded to threat 3486 | -8/Materials | Lost 3 parts (1n2w) 3792 | -8/Materials | Build established: Scavenger-Tank 3904 | -8/Materials | Discovered exit to Factory (range 7) 4126 | -8/Materials | Entered Factory 4126 | -7/Factory | Evolved 2 slots: Propulsion x2 4573 | -7/Factory | Identified exit to DSF 4573 | -7/Factory | Entered DSF 4640 | -7/DSF | Additional patrols routed to DSF 4739 | -7/DSF | Lost 8 parts (2n3u3w) 4854 | -7/DSF | Released all parts (9) 4888 | -7/DSF | Discovered new exit (range 15) 4903 | -7/DSF | Entered Factory 4903 | -6/Factory | Evolved 2 slots: Utility x2 4966 | -6/Factory | Discovered new exit (range 18) 5393 | -6/Factory | Lost 4 parts (1n2u1w) 5525 | -6/Factory | Discovered new exit (range 3) 5525 | -6/Factory | Discovered new exit (range 9) 5525 | -6/Factory | Identified exit to Lower Caves 5528 | -6/Factory | Identified exit to Factory 5529 | -6/Factory | Entered another Factory area 5529 | -5/Factory | Evolved 2 slots: Power x1, Weapon x1 5633 | -5/Factory | Identified exit to Factory 5635 | -5/Factory | Fabricated Hacking Suite? 5661 | -5/Factory | Entered another Factory area 5661 | -4/Factory | Evolved 2 slots: Utility x2 5963 | -4/Factory | Identified exit to Research 6022 | -4/Factory | Entered Research 6022 | -3/Research | Evolved 2 slots: Utility x1, Weapon x1 6093 | -3/Research | Spotted B-86 Titan 6135 | -3/Research | Lost 4 parts (3n1w) 6144 | -3/Research | Core integrity fell below 50% 6175 | -3/Research | Core integrity fell below 20% 6209 | -3/Research | System corruption reached 10% 6270 | -3/Research | Destroyed by G-67 Veteran with Field Laser Last Messages --------------- 06216_ H-77 Assassin suffers critical hit (Destroy). 06217_ Acquired Imp. Antigrav System. 06219_ Slug penetrates Wall. 06219_ Penetrated by Slug. 06220_ Wall collapses. 06226_ Slug penetrates Wall. 06238_ System corrupted: Component data lost. 06259_ Triggered Stasis Trap. 06259_ A bubble of rippling energy engulfs the area. 06259_ Field strength at 90. 06260_ Field strength at 80. 06260_ Imp. Antigrav System destroyed. 06261_ Field strength at 64. 06262_ Field strength at 58. 06263_ Field strength at 52. 06264_ Field strength at 29. 06265_ Field strength at 23. 06266_ Field strength at 17. 06266_ Railgun destroyed. 06267_ Stasis field depleted. Map ----- +----------------------------------------------------+ | ?????????????????????????????????? ?????# | | ???????????????????????????????????? ???????# | | ?????????????????????#################+########## | | ?????????????????????# # + | | ?????????????????????# + ######### | | ?????????????????????# # #???????# | | ?????????????????????# + #???????# | | ?????????????????????# # #???????# | | ?????????????????????# # #???????## | | ????????????#################+###### ####??#### | | ??????????? | | ??????????? g | | ?????????? g | | ??????????? | | ??????????????######## ###+#############+###### | | ?????????????????????# #?# ?????????????????? | | ?????????????????????# #?# ???????????????? | | ?????????????????????# #?# ????????????# | | ?????????????????????# #?# ??????????# | | ?????????????????????# #?# #??????????? | | ?????????????????????# #?# #??????????? | | ?????????????????????# #?# ""Y"" #??????????? | | ?????????????????????#^ #?# """"" #?????????# | | ?????????????????????# ^#??##########?????????# | | ?????????????????????# #?????????????????????# | | ?????????????????????#k @#??????????????????????? | | ?????????????????????# #??????????????????????? | | ?????????????????????# +??????????????????????? | | ?????????????????????# #??????????????????????? | | ?????????????????????# #??????????????????????? | | ?????????????????????# #??????????????????????? | | ?????????????????????# #??????????????????????? | | ?????????????????????# #??????????????????????? | | ?????????????????????# #??????????????????????? | | ?????????????????????# +??????????????????????? | | ?????????????????????# #??????????????????????? | | ?????????????????????# ???????????????????????? | | ?????????????????????# ???????????????????????? | | ????????????????????? ???????????????????????? | | ????????????????????? ???????????????????????? | | ??????????????????????? ???????????????????????? | | ?????????????????????????????????????????????????? | | ?????????????????????????????????????????????????? | | ?????????????????????????????????????????????????? | | ?????????????????????????????????????????????????? | | ?????????????????????????????????????????????????? | | ?????????????????????????????????????????????????? | | ?????????????????????????????????????????????????? | | ?????????????????????????????????????????????????? | | ?????????????????????????????????????????????????? | +----------------------------------------------------+ Best States ------------- Heat Dissipation 48 Energy Generation 28 Energy Capacity 360 Matter Stores 300 Matter Capacity 300 Sight Range 22 Robot Scan Range 16 Terrain Scan Density 210 Armor Coverage 800 Evasion (%) 64 Recoil Reduction 2 Offensive Hacking 62 Defensive Hacking 20 Item Schematics ----------------- Hacking Suite | -6/Factory | Scanalyzed Robot Schematics ------------------ None Fabricated ------------ Hacking Suite | x1 | -5/Factory Alien Tech Used ----------------- None Achievements -------------- None Challenges ------------ None Game ------ Seed DrainedSalvageThermoblaster Manual? 0 Play Time 01:18:07 Cumulative 64.0 hours Start 2024.07.02 @ 14:34:33 End 2024.07.03 @ 01:44:16 Sessions 1 Manual Loads 0 Difficulty Rogue Special Mode None Game No. 57 Rogue 57 Adventurer 0 Explorer 0 Win Type - Total 0 Types 0/0/0/0/0/0/0/0/0 Lore% 21 Gallery% 43 Achievement% 35 Wizard Run 0 Options --------- Layout 0 ASCII 0 Keyboard 1 Movement Numpad Keybinds 0 Fullscreen 2 Font 18/SmallcapsGlow Map View 76x50 Zoom Use 0% Tactical HUD 1 Map Filters NONE Filters NONE Steam 1 RUN: 61dd1ac8-69a3-4e3d-9433-41ae11437a85